Cogmind - Beta 16.1 @@@ ROGUE MODE // 2026.03.05 @ 10:58:18 // Winter2019/RPGLIKE Player: Jaegerpls Result: Destroyed by 8R-3JT(R) with Subdweller Beam Cannon Performance ------------- Evolutions (0) 0 Regions Visited (2) 400 Robots Destroyed (22) 110 Value Destroyed (677) 677 Prototype IDs (2) 40 Alien Tech Used (0) 0 Bonus (0) 0 TOTAL SCORE: 1227 Bonus ------- None Cogmind --------- Core Integrity 0/600 Matter 300/300 Energy 160/160 System Corruption 1% Temperature Cool (9) Movement Flying (34) Location -10/Subcaves Parts ------- > --- POWER (1) -------- Light Nuclear Core > --- PROPULSION (3) --- Flight Unit Flight Unit Flight Unit > --- UTILITY (3) ------ Improved Terrain Scanner Hacking Suite > --- WEAPON (3) ------- Maul Heavy Hammer Heavy Hammer > --- INVENTORY (1) ---- Weight Redist. System Peak State ------------ > --- POWER ------------ Light Nuclear Core > --- PROPULSION ------- Flight Unit Flight Unit Flight Unit > --- UTILITY ---------- Improved Terrain Scanner Hacking Suite > --- WEAPON ----------- Maul Heavy Hammer Heavy Hammer > --- INVENTORY -------- Weight Redist. System [Rating: 18] Favorites ----------- Power Light Ion Engine Engine Light Ion Engine Power Core Light Nuclear Core Propulsion Flight Unit Wheel Wheel Flight Unit Flight Unit Utility Improved Terrain Scanner Device Improved Terrain Scanner Hackware Hacking Suite Weapon Mining Claw Energy Gun Medium Laser Impact Weapon Heavy Hammer Slashing Weapon Mining Claw Build | -11 -10 -10 ------- Run | Yrd Mat Sub Slots Evolved 6 | 4 2 . Power . | . . . Propulsion 2 | 1 1 . Utility 2 | 1 1 . Weapon 2 | 2 . . Parts Attached 20 | 8 12 . Power 2 | 1 1 . Engine 1 | 1 . . Core 1 | . 1 . Reactor . | . . . Propulsion 6 | 3 3 . Treads . | . . . Leg . | . . . Wheel 3 | 3 . . Hover . | . . . Flight 3 | . 3 . Utility 4 | 2 2 . Device 3 | 2 1 . Storage . | . . . Processor . | . . . Hackware 1 | . 1 . Protection . | . . . Artifact . | . . . Weapon 8 | 2 6 . Energy Gun 2 | 2 . . Energy Cannon . | . . . Ballistic Gun . | . . . Ballistic Cannon . | . . . Launcher . | . . . Special Weapon . | . . . Impact Weapon 3 | . 3 . Slashing Weapon 3 | . 3 . Piercing Weapon . | . . . Special Melee Weapon . | . . . Unidentified Prototypes . | . . . Parts Lost . | . . . Power . | . . . Propulsion . | . . . Utility . | . . . Weapon . | . . . Highest Loss Streak . | . . . To Critical Strikes . | . . . Average Backups . | . . 1 Power . | . . . Propulsion . | . . . Utility . | . . 1 Weapon . | . . . Tool/Special . | . . . Unused Backups 1 | . 1 . Power . | . . . Propulsion 1 | . 1 . Utility . | . . . Weapon . | . . . Tool/Special . | . . . Average Slot Usage (%) 95 | . 96 90 Engine 8 | . 8 . Core 3 | . 3 10 Wheel 3 | . 3 . Flight 24 | . 24 30 Device 18 | . 18 10 Hackware 4 | . 4 10 Energy Gun 6 | . 6 . Impact Weapon 2 | . 1 30 Slashing Weapon 23 | . 24 . Peak Build Rating 18 | 9 18 18 Average Rating 12 | 6 12 18 On Entrance 9 | . 9 18 Avg Prop Armor Cover (%) . | . . . Naked Turns . | . . . Heaviest Build 15 | 8 15 15 Greatest Support 26 | 26 26 17 Greatest Overweight (x) . | . . . Average Overweight (x) . | . . . Largest Inventory Capacity 1 | 1 1 1 Average Capacity 1 | 1 1 1 Most Carried 1 | 1 1 1 Average Carried . | . . 1 Final Capacity 1 | 1 1 1 Final Carried 1 | . 1 1 Class Distribution -------------------- 48% | Gladiator 28% | Scavenger-Gladiator 22% | Mutant Dominant Class ---------------- Gladiator | -10/Materials Scavenger-Gladiator | -10/Subcaves Resources | -11 -10 -10 ----------- Run | Yrd Mat Sub Matter Collected 422 | 280 133 9 Remotely 226 | 219 7 . Salvage Created 625 | 162 427 36 Parts 52 | 16 34 2 Haulers Intercepted 2 | . 2 . Recyclers Shooed 2 | 1 1 . Parts Field Recycled . | . . . Retrieved Matter . | . . . Parts Self-Destructed . | . . . Prevented . | . . . Parts Restored . | . . . Kills | -11 -10 -10 ------- Run | Yrd Mat Sub Combat Hostiles Destroyed 9 | . 8 1 Melee 8 | . 8 . Classes Destroyed 9 | 2 6 1 Builder 1 | . 1 . Tunneler 5 | 5 . . Hauler 2 | . 2 . Recycler 1 | 1 . . Operator 1 | . 1 . Watcher 3 | . 3 . Swarmer 3 | . 3 . Grunt 5 | . 5 . Subdweller 1 | . . 1 Best Kill Streak 5 | 5 3 1 Combat Bots Only 3 | . 3 1 Max Kills in Single Turn 1 | 1 1 1 Gunslinging . | . . . Exploded . | . . . Melee 1 | . 1 . Uniques/NPCs Destroyed . | . . . Combat | -11 -10 -10 -------- Run | Yrd Mat Sub Hostile Shots Fired 69 | . 54 15 Missed 21 | . 19 2 Hits 48 | . 35 13 Projectile 48 | . 35 13 Damage Taken 801 | . 508 293 Core 691 | . 438 253 Absorbed by Shields . | . . . Redirected to Core 382 | . 238 144 Core Remaining (%) 100 | 100 . . Volleys Fired 82 | 11 71 . Largest 2 | 2 2 . Hottest 90 | 90 90 . Shots Fired 115 | 22 93 . Gun 115 | 22 93 . Cannon . | . . . Launcher . | . . . Special . | . . . Kinetic . | . . . Thermal 115 | 22 93 . Explosive . | . . . Electromagnetic . | . . . Robot Hit Streak 9 | 8 9 . Robot Miss Streak 2 | 2 2 . Penetration Max . | . . . Secondary Targets . | . . . Shots Hit Robots 67 | 16 45 6 Core Hits 25 | 7 18 . Critical Kills . | . . . Critical Parts Destroyed 3 | . . 3 Critical Strikes 3 | . . 3 Smash 3 | . . 3 Melee Attacks 119 | . 110 9 Impact 13 | . 4 9 Slashing 106 | . 106 . Piercing . | . . . Sneak Attacks . | . . . Combat Hostiles . | . . . Follow-up Attacks 17 | . 17 . Damage Inflicted 1494 | 188 979 327 Guns 318 | 188 130 . Cannons . | . . . Explosions . | . . . Melee 1176 | . 849 327 Ramming . | . . . Kinetic . | . . . Thermal 318 | 188 130 . Explosive . | . . . Electromagnetic . | . . . Impact 378 | . 51 327 Slashing 798 | . 798 . Piercing . | . . . Highest Corruption 1 | . 1 1 Average Corruption 1 | . 1 1 Corruption Purged . | . . . Corruption Blocked . | . . . Effects 8 | . 8 . Message Errors 1 | . 1 . Matter Fused 2 | . 2 . Heat Flow Errors 2 | . 2 . Data Loss (minor) 2 | . 2 . Data Loss (major) 1 | . 1 . Overload Shots . | . . . Overflow Damage 288 | . 86 202 Projectiles . | . . . Explosions . | . . . Melee 288 | . 86 202 Knockbacks 5 | . . 5 Impact 3 | . . 3 Kinetic . | . . . Secondary 2 | . . 2 Self-Inflicted Damage 103 | . 103 . Shots 3 | . 3 . Rammed . | . . . Targets Rammed . | . . . Kicked . | . . . Crushed . | . . . Highest Temperature 146 | 28 146 . Average Temperature 34 | 17 46 . Received Heat Transfer 285 | . 210 75 Siege Activations . | . . . Martial Activations . | . . . Shielding Activations . | . . . Robots Disrupted . | . . . Combat Hostiles . | . . . Robots Corrupted 1 | . . 1 Combat Hostiles 1 | . . 1 Parts Fried . | . . . Impact Corruptions 5 | . 1 4 Robots Melted . | . . . Combat Hostiles . | . . . Parts Melted 1 | 1 . . Heat Transferred 867 | 508 359 . Parts Sabotaged . | . . . Parts Stolen . | . . . Parts Stripped . | . . . Power Chain Reactions . | . . . Alert | -11 -10 -10 ------- Run | Yrd Mat Sub Maximum Alert Level 2 | . 2 . Low Security (%) 59 | 100 55 . Level 1 25 | . 27 . Level 2 15 | . 16 . Level 3 . | . . . Level 4 . | . . . Level 5 . | . . . High Security . | . . . Max Security . | . . . Peak Influence 500 | 20 500 . Initial 6 | . 6 . Average 192 | 5 207 . Influence Increases 932 | 30 902 . Destroy 0b10 Robot/C 160 | . 160 . Destroy 0b10 Robot/NC 65 | 30 35 . Destroy Leader 40 | . 40 . Successful Hack 31 | . 31 . Disable Machine 465 | . 465 . Destroy Structure 126 | . 126 . Partial Spotted 15 | . 15 . Lose Combat Pursuer 30 | . 30 . Influence Decreases 688 | 20 422 246 Entered New Map 240 | . 4 236 Time Decay 438 | 20 408 10 Lost Ally 10 | . 10 . Squads Dispatched 1 | . 1 . Investigation . | . . . Extermination . | . . . Reinforcement 1 | . 1 . Assault . | . . . Garrison . | . . . Intercept . | . . . Searches Triggered . | . . . Construction Impeded . | . . . Haulers Reinforced . | . . . Active Scanning Responses . | . . . Cargo Convoy Interrupts . | . . . Stealth | -11 -10 -10 --------- Run | Yrd Mat Sub Distress Signals 1 | . 1 . Communications Jammed . | . . . Distress Signals . | . . . Times Spotted 26 | . 23 3 Peak Tracking Total 5 | . 5 3 Tactical Retreats 2 | . 2 . Traps | -11 -10 -10 ------- Run | Yrd Mat Sub Traps Triggered . | . . . Indirectly . | . . . Trap Hack Attempts . | . . . Triggered . | . . . Disarmed . | . . . Reprogrammed . | . . . Reused . | . . . Traps Extracted . | . . . Installed . | . . . Triggered . | . . . Machines | -11 -10 -10 ---------- Run | Yrd Mat Sub Machines Disabled 31 | . 31 . Max in Single Turn 3 | . 3 . Machines Repaired . | . . . Machines Dismantled . | . . . Machines Sabotaged . | . . . Overloaded Fab Kills . | . . . Hacking | -11 -10 -10 --------- Run | Yrd Mat Sub Machines Accessed 9 | . 9 . Terminals 7 | . 7 . Fabricators . | . . . Repair Stations . | . . . Recycling Units 2 | . 2 . Scanalyzers . | . . . Garrison Access . | . . . Total Hacks 32 | . 32 . Successful 19 | . 19 . Failed 12 | . 12 . Catastrophic . | . . . Database Lockouts 1 | . 1 . Manual 22 | . 22 . Terminals 23 | . 23 . Fabricators . | . . . Repair Stations . | . . . Recycling Units 9 | . 9 . Scanalyzers . | . . . Garrison Access . | . . . Terminal Hacks 3 | . 3 . Robot Analysis 1 | . 1 . Prototype ID Bank 1 | . 1 . Registered Prototypes 1 | . 1 . Fabricator Hacks . | . . . Repair Station Hacks . | . . . Recycling Unit Hacks 3 | . 3 . Report Inventory 2 | . 2 . Retrieve Components 1 | . 1 . Scanalyzer . | . . . Garrison Access Hacks . | . . . Unauthorized Hacks 13 | . 13 . Terminals 10 | . 10 . Track 1 | . 1 . Assimilate 2 | . 2 . Botnet 2 | . 2 . Skim 5 | . 5 . Fabricators . | . . . Repair Stations . | . . . Recycling Units 3 | . 3 . Reject 2 | . 2 . Mask 1 | . 1 . Scanalyzers . | . . . Garrison Access . | . . . Data Cores Recovered . | . . . Used . | . . . Hacking Detections 7 | . 7 . Full Trace Events . | . . . Feedback Events . | . . . Feedback Blocked . | . . . Robot Schematics Acquired . | . . . Robots Built . | . . . Authchips . | . . . Time . | . . . Total Robot Build Rating . | . . . Part Schematics Acquired . | . . . Parts Built . | . . . Authchips . | . . . Time . | . . . Total Part Build Rating . | . . . Part Studies Acquired . | . . . Parts Repaired . | . . . Time . | . . . Parts Recycled . | . . . Recycled Matter . | . . . Retrieved Matter . | . . . Retrieved Components 10 | . 10 . Parts Scanalyzed . | . . . Part Schematics Acquired . | . . . Parts Damaged . | . . . Bothacking | -11 -10 -10 ------------ Run | Yrd Mat Sub Used RIF Installer . | . . . Robots Hacked . | . . . Non-combat . | . . . Combat . | . . . Robot Hacks Applied . | . . . Relay Couplers Released . | . . . Fabnet Peak Effective % . | . . . Robots Rewired . | . . . Allies Hacked . | . . . Hacks Repelled . | . . . Allies | -11 -10 -10 -------- Run | Yrd Mat Sub Total Allies 1 | . 1 . Largest Group 1 | . 1 . Highest-Rated Group 10 | . 10 . Highest-Rated Ally 10 | . 10 . Total Orders . | . . . Ally Attacks . | . . . Total Damage . | . . . Kills . | . . . Allies Corrupted . | . . . Allies Melted . | . . . Intel | -11 -10 -10 ------- Run | Yrd Mat Sub Active Infowar (turns) 1115 | 52 1025 38 Terrain 1115 | 52 1025 38 Robot Analysis Total 1 | . 1 . Derelict Logs Recovered 1 | . . 1 Drone Launches . | . . . Drone Recoveries . | . . . Exploration | -11 -10 -10 ------------- Run | Yrd Mat Sub Turns Passed 1143 | 80 1025 38 Spaces Moved 1178 | 44 1081 53 Core 3 | 3 . . Treads . | . . . Legs . | . . . Wheels 124 | 41 83 . Hover . | . . . Flight 1051 | . 998 53 Fastest Speed 34 | 50 34 34 Average Speed 40 | 79 38 34 Slowest Speed 90 | 90 80 34 Overloaded Moves . | . . . Propulsion Burnouts . | . . . Robots Hopped 3 | . 3 . Potential Cave-ins . | . . . Cave-ins Triggered . | . . . Exploration Rate (%) 36 | 3 98 7 Regions Visited 2 Branch Regions 1 Pre-discovered Areas 1 | . 1 . Known Exits Taken . | . . . Unknown Exits Taken 2 | 1 1 . Scrap Searched . | . . . Spaces Dug 4 | . 4 . Terrain Destroyed 143 | . 143 . Melee 4 | . 4 . Projectile . | . . . AOE 139 | . 139 . Terrain Rammed . | . . . Walls Destroyed . | . . . Machines Disabled . | . . . Actions | -11 -10 -10 --------- Run | Yrd Mat Sub Total 1536 | 63 1414 59 Wait 155 | . 155 . Move 1171 | 43 1075 53 Hop 2 | . 2 . Pick Up 2 | . 2 . Fast Attach 18 | 7 11 . Attach . | . . . Detach 1 | . 1 . Swap 3 | 1 2 . Drop 12 | 1 11 . Fire 82 | 11 71 . Melee 85 | . 79 6 Ram . | . . . Kick . | . . . Crush . | . . . Escape Stasis . | . . . Rewire . | . . . Trap . | . . . Miscellaneous 5 | . 5 . Route ------- -11/Scrapyard -10/Materials (discovered 6 exits: *Mat x3 / *Min x2 / [*Sub]) -10/Subcaves (discovered 1 exit: [*Mat]) History --------- Turn | Location | Event 1 | -11/Scrapyard | Upgraded with Propulsion slot (x1) 1 | -11/Scrapyard | Upgraded with Utility slot (x1) 1 | -11/Scrapyard | Upgraded with Weapon slot (x2) 17 | -11/Scrapyard | Discovered new exit (range 14) 81 | -11/Scrapyard | Entered Materials 215 | -10/Materials | Discovered new exit (range 6) 221 | -10/Materials | Discovered new exit (range 15) 416 | -10/Materials | Discovered new exit (range 16) 455 | -10/Materials | Identified exit to Materials 517 | -10/Materials | Identified exit to Mines 567 | -10/Materials | Loaded intel: 22 trap records 576 | -10/Materials | Build established: Gladiator 607 | -10/Materials | Learned location of Storage (-8) 635 | -10/Materials | Learned location of 1 exit from Storage 635 | -10/Materials | Reached level 2 642 | -10/Materials | Upgraded with Propulsion slot (x1) 651 | -10/Materials | Learned location of 3 exits from Materials 654 | -10/Materials | Central database locked down 713 | -10/Materials | Learned location of 1 exit from Storage 759 | -10/Materials | Learned location of 2 exits from Mines 808 | -10/Materials | Core integrity fell below 50% 934 | -10/Materials | Reached level 3 1010 | -10/Materials | Upgraded with Utility slot (x1) 1106 | -10/Materials | Entered Subcaves 1107 | -10/Subcaves | Approached by a straggling Scientist 1111 | -10/Subcaves | Learned Materials emergency access door positions 1114 | -10/Subcaves | Build established: Scavenger-Gladiator 1120 | -10/Subcaves | Discovered new exit (range 7) 1123 | -10/Subcaves | A Subdweller sparked back to life 1123 | -10/Subcaves | A Subdweller sparked back to life 1123 | -10/Subcaves | A Subdweller sparked back to life 1132 | -10/Subcaves | Core integrity fell below 20% 1144 | -10/Subcaves | Destroyed by 8R-3JT(R) with Subdweller Beam Cannon Last Messages --------------- 01123_ 0E-WXV(R) system corrupted by crushing effect. 01123_ 0E-WXV(R) knocked back. 01123_ 8R-3JT(R) creaks and sparks as it begins to move. 01123_ PL-VIO(R) creaks and sparks as it begins to move. 01123_ 0E-WXV(R) creaks and sparks as it begins to move. 01130_ 0E-WXV(R) suffers critical hit (Smash). 01130_ Destroyed Disposable Heat Sink. 01130_ 0E-WXV(R) system corrupted by crushing effect. 01131_ 0E-WXV(R) system terminally corrupted. 01133_ Acquired 9 matter. 01137_ PL-VIO(R) suffers critical hit (Smash). 01137_ Destroyed Sub. Power Source. 01137_ PL-VIO(R) system corrupted by crushing effect. 01137_ PL-VIO(R) knocked back. 01139_ Subatomizers dissect the Corrupted Sub. Monowheel. 01140_ 8R-3JT(R) suffers critical hit (Smash). 01140_ Destroyed Sub. Optics. 01140_ 8R-3JT(R) system corrupted by crushing effect. 01140_ 8R-3JT(R) knocked back. 01143_ PL-VIO(R) affixes Scrap Shield Fragment to Scrap Shield. Map ----- +----------------------------------------------------+ | ??????????# #??## ##??????????????? | | ????????#?# #?#??# #??#???????????? | | ????????#?# #??##?## ###????#????????? | | ???????#??# ?#?#?### #####???#????#????? | | ????#??#??# ?#?## #####???#?#?##????????? | | ????? ##### ### ##?#??###?#?????#??????? | | ???? ##????#####?#????#??????? | | ???? #?#??? #??????????????? | | ???? ## #####? ##?#???????????? | | ?????????## ###### #?????#????????? | | ?????????# #????##?#??????? | | ?????#???#### ## ###?####???????? | | ??????#?????######## #??###????#????? | | ??????????????##???#### #?###????#?????? | | ?????????????#?#?###?### ##?#??????#????? | | ????????????##?#?##?#### ###?##?#??????? | | ??????????#??#??###?#### #?####?????#??? | | ???????????#?######?#?## #####???###???????? | | ?????????##?##??#?###?### #######??##?#????? | | ??????????#?#?#?#####?### ##?#####??##?????? | | ?????????#?###?#???#??### ####??#?#?###????? | | ???????????##?##?####### ##??##?####???????? | | ?????????##?#????##????##c ######?###???????? | | ?????????#?#?####?##??### # << #?#########???? | | ??????????##??##??##### [=R < #?####?##?????? | | ??????????##?#?###### =%@ < ##?####?##????? | | ?????????#?##?#?#### < ## R##?##?#?#?????? | | ?????????###?#???### ### < #?###?####????? | | ?????????####????### ##?## ##??#?##???????? | | ???????????#?????#?#######? #??######?????? | | ?????????##?#?#######?## ? ########???????? | | ???????????#?##?#??#?#??#? ? #???###?#??????? | | ??????????#?????###???###?? ??#???#??????????? | | ???????????????#?#?#??##? ?#?##???#?##???????? | | ????????????#??#?#######? ############???????? | | ?????????????##?#????#?? ??##?#?#?#??????????? | | ??????????????#??????#? ??#???##??????????? | | ??????????????##?#???####? ##??#?##??????????? | | ????????????????????????# #?####?????????????? | | ??????????????????######? ??##??????????????? | | ???????????????????#??#? ? #?#???????????????? | | ????????????????????????#????????????????????? | | ?????????????????????????????????????????????? | | ?????????????????????????????????????????????? | | ?????????????????????????????????????????????? | | ?????????????????????????????????????????????? | | ?????????????????????????????????????????????? | | ?????????????????????????????????????????????? | | ?????????????????????????????????????????????? | | ?????????????????????????????????????????????? | +----------------------------------------------------+ Best States ------------- Heat Dissipation 37 Energy Generation 19 Energy Capacity 160 Matter Stores 300 Matter Capacity 300 Sight Range 16 Terrain Scan Range 16 Terrain Scan Density 310 Additional Mass Support 6 Evasion (%) 63 Offensive Hacking 10 Item Schematics ----------------- None Robot Schematics ------------------ None Fabricated ------------ Nothing Repaired ---------- Nothing Studied --------- None Alien Tech Used ----------------- None Achievements -------------- None Challenges ------------ None RPGLIKE | -11 -10 -10 --------- Run | Yrd Mat Sub Levels Raised 2 | . 2 . XP Earned 7315 | 3000 3315 1000 XP Spent 5140 | 2940 2200 . Upgrades 15 | 10 5 . Propulsion Slot 2 | 1 1 . Utility Slot 2 | 1 1 . Weapon Slot 2 | 2 . . Heat Dissipation 2 | 2 . . Energy Generation 1 | . 1 . Mass Support 1 | . 1 . Inventory Capacity 1 | 1 . . Terrain Scan Density 3 | 3 . . Melee Accuracy 1 | . 1 . Protomatter Created 64 | . 64 . Integrity Restored 82 | . 82 . Core 82 | . 82 . Protomatter Decayed . | . . . Game ------ Seed MediumDeuteriumSpear Manual? 0 Play Time 00:30:39 Cumulative 167.9 hours Start 2026.03.05 @ 10:40:53 End 2026.03.05 @ 10:58:18 Sessions 1 Manual Loads 0 Difficulty Rogue Special Mode Winter2019/RPGLIKE Game No. 106 Rogue 106 Adventurer 0 Explorer 0 Win Type - Total 1 Types 0/0/0/1/0/0/0/0/0/0 Lore% 69 Gallery% 47 Achievement% 49 Wizard Run 0 Options --------- Layout 0 ASCII 0 Keyboard 0 Movement Mouse Keybinds 0 Fullscreen 2 Font 24/Smallcaps Map View 76x50 Zoom Use 0% Tactical HUD 1 Map Filters NONE Filters NONE Steam 1 RUN: 55f461b6-6014-407b-8f42-31d54ddc5df8